bitfinex-derivatives/quotes_BNBF0:USTF0_20250715
["timestamp","ask_amount","ask_price","bid_price","bid_amount"]
[1752588970946,0.97906262,687.32,686.54,0.96871943]
[1752588971446,0.97906262,687.27,686.58,0.96871943]
[1752588971845,0.97906262,687.27,686.27,1.94212853]
[1752588971846,0.97906262,687.25,686.56,0.96871943]
[1752588972050,0.97906262,687.26,686.54,0.96871943]
[1752588972551,2.06739255,687.26,686.51,0.96871943]
[1752588972748,2.06739255,687.26,686.34,1.29500472]
[1752588972749,0.97906262,687.22,686.47,0.96871943]
[1752588973048,0.97906262,687.23,686.47,0.96871943]
[1752588973246,1.4022327,687.23,686.47,0.96871943]
[1752588973451,1.08832993,687.22,686.47,0.96871943]
[1752588973650,1.08832993,687.21,686.47,0.96871943]
[1752588973953,0.97906262,687.23,686.47,0.96871943]
[1752588973954,1.51151817,687.2,686.47,0.96871943]
[1752588974149,0.97906262,687.23,686.47,0.96871943]
[1752588974150,1.08832993,687.19,686.47,0.96871943]
[1752588974348,1.08832993,687.18,686.46,0.96871943]
[1752588974648,0.42321213,687.17,686.45,0.96871943]
[1752588974849,1.51162398,687.25,686.44,0.96871943]
[1752588975049,0.42321213,687.24,686.44,0.96871943]
[1752588975647,0.42321213,687.25,686.44,0.96871943]
[1752588976852,1.51162398,687.25,686.44,0.96871943]
[1752588977152,0.42321213,687.24,686.44,0.96871943]
[1752588977352,0.42321213,687.24,686.42,0.96871943]
[1752588977553,1.08841185,687.23,686.42,0.96871943]
[1752588977754,0.97906262,687.21,686.39,0.96871943]
[1752588978054,0.97906262,687.18,686.41,0.96871943]
[1752588978250,1.40218264,687.19,686.4,0.96871943]
[1752588978450,2.06747447,687.18,686.4,0.96871943]
[1752588978653,0.42312002,687.17,686.38,0.96871943]
[1752588979054,0.42312002,687.18,686.38,0.96871943]
[1752588979651,1.51153187,687.18,686.38,0.96871943]
[1752588979850,1.51153187,687.17,686.38,0.96871943]
[1752588980151,1.51153187,687.16,686.38,0.96871943]
[1752588980355,1.51153187,687.15,686.37,0.96871943]
[1752588980552,1.08841185,687.14,686.37,0.96871943]
[1752588980753,1.51065385,687.13,686.37,0.96871943]
[1752588980954,1.51065385,687.12,686.37,0.96871943]
[1752588981155,1.08770774,687.11,686.37,0.96871943]
[1752588981355,1.08770774,687.1,686.38,0.96871943]
[1752588981554,1.08770774,687.09,686.38,0.96871943]
[1752588981757,1.08770774,687.08,686.38,0.96871943]
[1752588981953,1.30880792,687.35,686.39,0.96871943]
[1752588981954,1.08770774,687.07,686.39,0.96871943]
[1752588982157,1.08770774,687.06,686.39,0.96871943]
[1752588982358,1.08770774,687.05,686.38,0.96871943]
[1752588982554,1.08770774,687.04,686.38,0.96871943]
[1752588982759,1.08770774,687.03,686.38,0.96871943]
[1752588982959,1.08770774,687.02,686.38,0.96871943]
[1752588983259,0.97906262,687.19,686.38,0.96871943]
[1752588983860,0.97906262,687.18,686.38,0.96871943]
[1752588984855,0.97906262,687.19,686.37,0.96871943]
[1752588985757,0.97906262,687.17,686.34,0.96871943]
[1752588986761,0.97906262,687.16,686.34,0.96871943]
[1752588986962,0.97906262,687.15,686.33,0.96871943]
[1752588987161,0.97906262,687.12,686.28,0.96871943]
[1752588987360,0.97906262,687.12,686.27,0.96871943]
[1752588987563,0.97906262,687.12,686.28,0.96871943]
[1752588988264,0.97906262,687.12,686.27,0.96871943]
[1752588988461,1.51026415,687.15,686.24,0.96871943]
[1752588988665,1.30880792,687.37,685.05,3.2264593]
[1752588988666,1.08742695,687.14,686.26,0.96871943]
[1752588988966,1.08742695,687.13,686.26,0.96871943]
[1752588989266,1.08742695,687.12,686.26,0.96871943]
[1752588989465,1.51007139,687.11,686.26,0.96871943]
[1752588989663,1.08742695,687.1,686.26,0.96871943]
[1752588989967,1.08742695,687.09,686.35,0.96871943]
[1752588990167,1.08742695,687.08,686.35,0.96871943]
[1752588990364,1.08742695,687.07,686.35,0.96871943]
[1752588990565,1.08742695,687.06,686.35,0.96871943]
[1752588990762,1.08742695,687.05,686.35,0.96871943]
[1752588990966,1.08678356,687.04,686.35,0.96871943]
[1752588991167,1.08678356,687.03,686.32,0.96871943]
[1752588991368,1.08678356,687.02,686.33,0.96871943]
[1752588991567,1.08678356,687.01,686.33,0.96871943]
[1752588991765,0.97906262,687.22,686.33,0.96871943]
[1752588991966,1.08671172,687.21,686.33,0.96871943]
[1752588992170,1.50927315,687.2,686.33,0.96871943]
[1752588992370,0.97906262,687.14,686.38,0.96871943]
[1752588992570,0.25327419,687.39,686.37,0.96871943]
[1752588992571,1.08665677,687.13,686.37,0.96871943]
[1752588992765,1.50919717,687.12,686.37,0.96871943]
[1752588993069,1.50919717,687.11,686.37,0.96871943]
[1752588993269,1.50919716,687.1,686.37,0.96871943]
[1752588993470,1.50919716,687.09,686.37,0.96871943]
[1752588993671,1.08665676,687.08,686.31,0.96871943]
[1752588993866,1.08665676,687.07,686.29,0.96871943]
[1752588994167,1.08665676,687.06,686.29,0.96871943]
[1752588994372,1.08665676,687.05,686.29,0.96871943]
[1752588994569,1.08665676,687.04,686.28,0.96871943]
[1752588994771,1.08665676,687.03,686.28,0.96871943]
[1752588994971,1.08665676,687.02,686.28,0.96871943]
[1752588995172,0.97906262,687.25,686.28,0.96871943]
[1752588995370,1.08650713,687.24,686.28,0.96871943]
[1752588995571,1.50899144,687.23,686.28,0.96871943]
[1752588995772,1.50899144,687.22,686.28,0.96871943]
[1752588996071,1.50899144,687.21,686.28,0.96871943]
[1752588996268,1.50899144,687.2,686.28,0.96871943]
[1752588996474,1.50899144,687.19,686.28,0.96871943]
[1752588996671,1.50899144,687.18,686.28,0.96871943]
[1752588996875,1.50899144,687.17,686.28,0.96871943]
[1752588997077,1.50899144,687.16,686.28,0.96871943]
[1752588997273,1.50899144,687.15,686.28,0.96871943]
[1752588997575,0.97906262,687.24,685.04,3.2264593]
[1752588997576,1.50899144,687.14,686.26,0.96871943]
[1752588997776,1.50899144,687.13,686.19,0.96871943]
[1752588998072,1.50899144,687.12,686.19,0.96871943]
[1752588998272,1.50899144,687.11,686.19,0.96871943]
[1752588998572,1.08650713,687.1,686.19,0.96871943]
[1752588998873,1.08650713,687.09,686.19,0.96871943]
[1752588999072,1.08650713,687.08,686.19,0.96871943]
[1752588999373,1.08650713,687.07,686.19,0.96871943]
[1752588999579,1.08650713,687.06,686.19,0.96871943]
[1752588999771,1.08650713,687.05,686.2,0.96871943]
[1752588999976,1.08650713,687.04,686.2,0.96871943]
[1752589000276,1.08650713,687.03,686.2,0.96871943]
[1752589000476,1.08650713,687.02,686.2,0.96871943]
[1752589000675,1.08650713,687.01,686.2,0.96871943]
[1752589000972,1.08650713,687.0,686.2,0.96871943]
[1752589001170,1.08650713,687.0,684.82,3.2264593]
[1752589001171,0.97906262,687.22,686.22,0.96871943]
[1752589002373,0.97906262,687.23,686.22,0.96871943]
[1752589002672,0.97906262,687.26,686.25,0.96871943]
[1752589003277,0.97906262,687.26,686.26,0.96871943]
[1752589003477,0.25327419,687.39,686.27,0.96871943]
[1752589003478,0.97906262,687.27,686.27,0.96871943]
[1752589003677,1.08664477,687.26,686.27,0.96871943]
[1752589003877,0.42255577,687.25,686.27,0.96871943]
[1752589004378,1.50920054,687.25,686.27,0.96871943]
[1752589004580,0.42261642,687.24,686.27,0.96871943]
[1752589004879,0.97906262,687.17,686.33,0.96871943]
[1752589005074,1.08664477,687.16,686.33,0.96871943]
[1752589005274,0.42261642,687.15,686.34,0.96871943]
[1752589005476,1.08664477,687.14,686.34,0.96871943]
[1752589005675,1.50926119,687.13,686.34,0.96871943]
[1752589005979,1.50926119,687.12,686.34,0.96871943]
[1752589006179,1.50926119,687.11,686.33,0.96871943]
[1752589006386,1.50926119,687.1,686.3,0.96871943]
[1752589006583,1.50926119,687.09,686.3,0.96871943]
[1752589006886,1.50926119,687.08,686.31,0.96871943]
[1752589007087,1.50960561,687.07,686.31,0.96871943]
[1752589007283,1.50960561,687.06,686.31,0.96871943]
[1752589007488,1.08706401,687.05,686.31,0.96871943]
[1752589007685,1.08706401,687.04,686.31,0.96871943]
[1752589007882,1.08706401,687.03,686.31,0.96871943]
[1752589008087,1.08706401,687.02,686.31,0.96871943]
[1752589008286,1.08706401,687.01,686.31,0.96871943]
[1752589008484,1.08706401,687.0,686.34,0.96871943]
[1752589008683,1.08706401,686.99,686.34,0.96871943]
[1752589008982,1.08706401,686.98,686.34,0.96871943]
[1752589009186,1.08713334,686.97,686.34,0.96871943]
[1752589009383,1.08713334,686.96,686.34,0.96871943]
[1752589009584,0.97906262,687.15,686.33,0.96871943]
[1752589009788,1.08724779,687.14,686.33,0.96871943]
[1752589010088,1.51004102,687.13,686.33,0.96871943]
[1752589010284,1.51004102,687.12,686.34,0.96871943]
[1752589010484,1.51006282,687.11,686.34,0.96871943]
[1752589010685,1.51006282,687.1,686.32,0.96871943]
[1752589010884,0.42280083,687.09,686.32,0.96871943]
[1752589011683,0.97906262,687.08,686.33,0.96871943]
[1752589012184,2.48912544,687.08,686.33,0.96871943]
[1752589012389,2.48912544,687.07,686.32,0.96871943]
[1752589012585,1.51006282,687.06,686.32,0.96871943]
[1752589012790,0.42280083,687.05,686.32,0.96871943]
[1752589013886,1.51006282,687.05,686.32,0.96871943]
[1752589014088,1.51006282,687.04,686.32,0.96871943]
[1752589014292,1.08726199,687.03,686.33,0.96871943]
[1752589014492,1.08726199,687.02,686.33,0.96871943]
[1752589014788,1.08726199,687.01,686.33,0.96871943]
[1752589014993,1.08726199,687.0,686.33,0.96871943]
[1752589015189,1.08726199,686.99,686.32,0.96871943]
[1752589015391,1.08726199,686.98,686.32,0.96871943]
[1752589015591,1.08726199,686.97,686.33,0.96871943]
[1752589015886,1.08726199,686.96,686.33,0.96871943]
[1752589016090,0.97906262,687.09,686.33,0.96871943]
[1752589016288,1.50969966,687.18,686.26,0.96871943]
[1752589016489,1.08700207,687.18,686.26,0.96871943]
[1752589017294,1.08700207,687.17,686.25,0.96871943]
[1752589017492,1.08700207,687.16,686.25,0.96871943]
[1752589017692,1.08700207,687.15,686.25,0.96871943]
[1752589017894,0.25336454,687.19,686.25,0.96871943]
[1752589018094,0.25336454,687.19,686.24,0.96871943]
[1752589018795,0.25336454,687.19,686.25,0.96871943]
[1752589019597,0.25336454,687.19,686.26,0.96871943]
[1752589019896,1.34061093,687.19,686.26,0.96871943]
[1752589020894,0.97906262,687.18,686.27,0.96871943]
[1752589021097,2.06630901,687.18,686.28,0.96871943]
[1752589021292,1.08724639,687.18,686.27,0.96871943]
[1752589021497,0.97906262,687.11,686.32,0.96871943]
[1752589021799,1.08724639,687.18,686.48,0.96871943]
[1752589022094,1.51013899,687.17,686.48,0.96871943]
[1752589022294,1.51013899,687.16,686.48,0.96871943]
[1752589022495,1.51013899,687.15,686.48,0.96871943]
[1752589022694,1.51013899,687.14,686.48,0.96871943]
[1752589022896,1.51013899,687.13,686.48,0.96871943]
[1752589023095,1.51013899,687.12,686.48,0.96871943]
[1752589023299,1.51013899,687.11,686.49,0.96871943]
[1752589023595,1.51013899,687.1,686.49,0.96871943]
[1752589023793,1.51013899,687.09,686.49,0.96871943]
[1752589023992,1.08724639,687.08,686.49,0.96871943]
[1752589024194,1.08724639,687.07,686.49,0.96871943]
[1752589024393,1.08724639,687.06,686.49,0.96871943]
[1752589024597,1.08724639,687.05,686.49,0.96871943]
[1752589024799,1.08724639,687.04,686.48,0.96871943]
[1752589024996,1.08724639,687.03,686.48,0.96871943]
[1752589025196,1.08724639,687.02,686.48,0.96871943]
[1752589025395,1.08724639,687.01,686.48,0.96871943]
[1752589025599,1.08724639,687.0,686.47,0.96871943]
[1752589025801,1.08724639,686.99,686.48,0.96871943]
[1752589026000,1.08724639,686.98,686.5,0.96871943]
[1752589026201,1.08724639,686.97,686.5,0.96871943]
[1752589026497,1.08724639,686.96,686.49,0.96871943]
[1752589026695,1.08724639,686.95,686.49,0.96871943]
[1752589026895,1.08724639,686.94,686.49,0.96871943]
[1752589027201,1.0888107,686.93,686.49,0.96871943]
[1752589027399,1.0888107,686.92,686.47,0.96871943]
[1752589027601,0.25336454,687.19,686.47,0.96871943]
[1752589027802,1.08879334,687.18,686.47,0.96871943]
[1752589028101,1.51219136,687.17,686.48,0.96871943]
[1752589028397,2.49125398,687.16,686.4,0.96871943]
[1752589028603,2.49125398,687.15,686.39,0.96871943]
[1752589028800,1.51219136,687.14,686.39,0.96871943]
[1752589029000,1.51219136,687.13,686.4,0.96871943]
[1752589029200,1.51219136,687.12,686.4,0.96871943]
[1752589029401,1.51219136,687.11,686.4,0.96871943]
[1752589029696,1.51219136,687.1,686.4,0.96871943]
[1752589029901,1.51219136,687.09,686.41,0.96871943]
[1752589030101,1.51245019,687.08,686.4,0.96871943]
[1752589030302,1.51245019,687.07,686.4,0.96871943]
[1752589030504,1.51245019,687.06,686.38,0.96871943]
[1752589030803,2.49151281,687.05,686.34,0.96871943]
[1752589031000,1.51245019,687.04,686.34,0.96871943]
[1752589031200,1.51245019,687.03,686.33,0.96871943]
[1752589031404,1.51245019,687.02,686.34,0.96871943]
[1752589031600,1.51245019,687.01,686.34,0.96871943]
[1752589031900,1.51245019,687.0,686.34,0.96871943]
[1752589032104,1.51245019,686.99,686.34,0.96871943]
[1752589032304,1.51245019,686.98,686.34,0.96871943]
[1752589032504,1.51245019,686.97,686.34,0.96871943]
[1752589032808,1.51245019,686.96,686.34,0.96871943]
[1752589033008,1.51270407,686.95,686.37,0.96871943]
[1752589033208,1.51270407,686.94,686.37,0.96871943]
[1752589033408,0.97906262,686.89,686.28,0.96871943]
[1752589033604,0.97906262,686.82,686.22,0.96871943]
[1752589033807,0.97906262,686.78,686.16,0.96871943]
[1752589034005,1.08905217,686.77,686.05,0.96871943]
[1752589034205,1.51270407,686.76,686.05,0.96871943]
[1752589034408,1.51270407,686.75,686.01,0.96871943]
[1752589034606,1.51270407,686.74,686.01,0.96871943]
[1752589034811,1.51270407,686.73,685.82,1.29500472]
[1752589035110,1.51270407,686.72,685.99,0.97064516]
[1752589035306,0.98050127,686.63,685.87,0.97064516]
[1752589035510,3.26068367,687.75,684.9,3.2264593]
[1752589035511,0.98050127,686.66,685.83,0.97064516]
[1752589035709,0.98050127,686.64,685.81,0.97064516]
[1752589035908,0.98050127,686.58,685.77,0.97064516]
[1752589036206,0.98050127,686.56,685.75,0.97064516]
[1752589036409,1.9628296,686.9,684.72,3.2264593]
[1752589036410,0.98050127,686.57,685.68,0.97064516]
[1752589036806,3.26068367,687.6,685.67,0.97064516]
[1752589036807,2.06906035,686.56,685.67,0.97064516]
[1752589037007,1.51151106,686.55,685.67,0.97064516]
[1752589037209,0.42295198,686.54,685.67,0.97064516]
[1752589037608,0.42295198,686.54,685.62,0.97064516]
[1752589037810,0.42295198,686.54,685.61,0.97064516]
[1752589038010,1.51151106,686.56,685.61,0.97064516]
[1752589038208,1.51151106,686.55,685.61,0.97064516]
[1752589038410,1.51151106,686.54,685.58,0.97064516]
[1752589038612,1.51151106,686.53,685.58,0.97064516]
[1752589038808,1.51151106,686.52,685.56,0.97064516]
[1752589039013,1.51075125,686.51,685.56,0.97064516]
[1752589039211,1.08855908,686.5,685.55,0.97064516]
[1752589039411,1.51050041,686.49,685.52,0.97064516]
[1752589039713,1.51050041,686.48,685.43,0.97064516]
[1752589039914,1.51050041,686.47,685.42,0.97064516]
[1752589040114,1.51050041,686.46,685.41,0.97064516]
[1752589040310,1.51050041,686.45,685.41,0.97064516]
[1752589040510,1.08855908,686.44,685.37,0.97064516]
[1752589040711,1.08855908,686.43,685.37,0.967452]
[1752589040914,1.08855908,686.42,685.36,0.967452]
[1752589041116,1.51010354,686.41,685.36,0.967452]
[1752589041416,3.26068367,687.77,685.16,1.29500472]
[1752589041417,1.08855908,686.4,685.34,0.967452]
[1752589041613,1.08855908,686.39,685.33,0.967452]
[1752589041816,1.08855908,686.38,685.36,0.967452]
[1752589042011,1.08855908,686.37,685.36,0.967452]
[1752589042317,1.08855908,686.36,685.31,0.967452]
[1752589042516,1.08855908,686.35,685.31,0.967452]
[1752589042712,1.30880792,686.72,685.3,0.967452]
[1752589042713,1.08855908,686.34,685.3,0.967452]
[1752589042922,1.08855908,686.33,685.3,0.967452]
[1752589043113,1.08855908,686.32,685.3,0.967452]
[1752589043314,1.08855908,686.31,685.3,0.967452]
[1752589043518,1.08855908,686.3,685.27,0.967452]
[1752589043816,1.08855908,686.29,685.27,0.967452]
[1752589044114,1.08855908,686.28,685.27,0.967452]
[1752589044314,1.08855908,686.27,685.27,0.967452]
[1752589044518,1.08855908,686.26,685.25,0.967452]
[1752589044719,1.08855908,686.25,685.25,0.967452]
[1752589045015,0.97534302,686.6,685.25,0.967452]
[1752589045219,1.0809897,686.59,685.25,0.967452]
[1752589045515,1.50137859,686.58,685.23,0.967452]
[1752589045718,1.50077519,686.57,685.23,0.967452]
[1752589046016,1.50077519,686.56,685.23,0.967452]
[1752589046216,1.50077519,686.55,685.23,0.967452]
[1752589046412,1.50077519,686.54,685.22,0.967452]
[1752589046618,1.50077519,686.53,685.22,0.967452]
[1752589046819,1.50077519,686.52,685.22,0.967452]
[1752589047119,1.50077519,686.51,685.21,0.967452]
[1752589047418,1.50077519,686.5,685.21,0.967452]
[1752589047615,1.50077519,686.49,685.19,0.967452]
[1752589047818,1.0803863,686.48,685.2,0.967452]
[1752589048017,1.0803863,686.47,685.2,0.967452]
[1752589048217,1.0803863,686.46,685.19,0.967452]
[1752589048421,1.0803863,686.45,685.18,0.967452]
[1752589048616,1.0803863,686.44,685.18,0.967452]
[1752589048819,1.0803863,686.43,685.18,0.967452]
[1752589049019,1.0803863,686.42,685.18,0.967452]
[1752589049218,1.0803863,686.41,685.18,0.967452]
[1752589049418,1.30880792,686.85,683.72,4.51704303]
[1752589049419,1.0803863,686.4,685.17,0.967452]
[1752589049721,1.0803863,686.39,685.17,0.967452]
[1752589050021,1.0803863,686.38,685.17,0.967452]
[1752589050216,1.0803863,686.37,685.17,0.967452]
[1752589050418,1.0803863,686.36,685.16,0.967452]
[1752589050617,1.0803863,686.35,685.16,0.967452]
[1752589050821,1.0803863,686.34,685.16,0.967452]
[1752589051019,1.0803863,686.33,685.16,0.967452]
[1752589051323,0.97534302,686.68,685.16,0.967452]
[1752589051619,1.07779108,686.67,685.15,0.967452]
[1752589051818,1.49693608,686.66,685.15,0.967452]
[1752589052022,1.49693608,686.65,685.15,0.967452]
[1752589052222,1.49693608,686.64,685.17,0.967452]
[1752589052421,1.49693608,686.63,685.16,0.967452]
[1752589052718,1.49693608,686.62,685.16,0.967452]
[1752589052919,1.49693608,686.61,685.16,0.967452]
[1752589053122,1.49693608,686.6,685.17,0.967452]
[1752589053422,1.49693608,686.59,685.17,0.967452]
[1752589053623,1.49693608,686.58,685.15,0.967452]
[1752589053922,1.49693608,686.57,685.15,0.967452]
[1752589054218,1.49604147,686.56,685.15,0.967452]
[1752589054523,1.49604147,686.55,685.15,0.967452]
[1752589054722,1.49604147,686.54,685.14,0.967452]
[1752589055022,1.07714711,686.53,685.15,0.967452]
[1752589055222,1.07714711,686.52,685.15,0.967452]
[1752589055422,1.07714711,686.51,685.14,0.967452]
[1752589055722,1.07714711,686.5,685.15,0.967452]
[1752589055919,1.07714711,686.49,685.15,0.967452]
[1752589056122,1.07714711,686.48,685.15,0.967452]
[1752589056319,1.07714711,686.47,685.14,0.967452]
[1752589056524,1.07714711,686.46,685.14,0.967452]
[1752589056719,1.07714711,686.45,685.14,0.967452]
[1752589056920,1.07714711,686.44,685.12,0.967452]
[1752589057126,1.07714711,686.43,685.12,0.967452]
[1752589057324,1.07714711,686.42,685.11,0.967452]
[1752589057621,1.07714711,686.41,685.09,0.967452]
[1752589057824,1.07714711,686.4,685.09,0.967452]
[1752589058124,1.07714711,686.39,685.09,0.967452]
[1752589058320,1.07714711,686.38,685.09,0.967452]
[1752589058526,1.07714711,686.37,685.09,0.967452]
[1752589058723,1.07714711,686.36,685.09,0.967452]
[1752589058918,1.07714711,686.35,685.08,0.967452]
[1752589059124,1.07714711,686.34,685.06,0.967452]
[1752589059324,1.07714711,686.33,685.06,0.967452]
[1752589059524,1.07714711,686.32,685.06,0.967452]
[1752589059824,1.07714711,686.31,685.06,0.967452]
[1752589060022,1.07714711,686.3,685.06,0.967452]
[1752589060225,1.07714711,686.29,685.05,0.967452]
[1752589060422,1.07714711,686.28,685.04,0.967452]
[1752589060620,1.07714711,686.27,685.04,0.967452]
[1752589060821,1.07714711,686.26,685.04,0.967452]
[1752589061131,1.07714711,686.25,684.84,0.967452]
[1752589061322,1.07714711,686.24,684.83,0.967452]
[1752589061525,1.07714711,686.23,684.82,0.967452]
[1752589061725,1.07714711,686.22,684.82,0.967452]
[1752589061923,1.07714711,686.21,684.82,0.967452]
[1752589062125,1.07714711,686.2,684.82,0.967452]
[1752589062326,1.07714711,686.19,684.93,0.967452]
[1752589062523,1.07714711,686.18,684.94,0.967452]
[1752589062722,1.07714711,686.17,684.82,0.967452]
[1752589062922,0.97534302,686.53,684.82,0.967452]
[1752589063326,0.97534302,686.54,684.81,0.967452]
[1752589063524,0.97534302,686.58,684.92,0.967452]
[1752589063728,1.49827464,686.67,684.74,0.967452]
[1752589063928,0.97534302,686.64,684.65,0.967452]
[1752589064124,0.97534302,686.61,684.64,0.967452]
[1752589064323,1.49827464,686.64,684.63,0.967452]
[1752589064523,0.4185974,686.63,684.66,0.967452]
[1752589064823,1.49827464,686.63,684.66,0.967452]
[1752589065124,0.4185974,686.62,684.66,0.967452]
[1752589065328,0.4185974,686.62,684.67,0.967452]
[1752589065629,0.4185974,686.62,684.66,0.967452]
[1752589066126,0.4185974,686.63,684.66,0.967452]
[1752589066526,1.49827464,686.63,684.65,0.967452]
[1752589066723,0.97534302,686.65,683.09,3.2264593]
[1752589066724,1.49827464,686.62,684.66,0.967452]
[1752589066924,1.49827464,686.61,684.67,0.967452]
[1752589067128,1.49827464,686.6,684.67,0.967452]
[1752589067328,0.97534302,686.5,684.78,0.967452]
[1752589067628,0.97534302,686.56,684.74,0.967452]
[1752589068025,2.47361766,686.56,684.73,0.967452]
[1752589068329,1.07967724,686.55,684.71,0.967452]
[1752589068526,0.97534302,686.61,684.7,0.967452]
[1752589068926,0.97534302,686.55,684.74,0.967452]
[1752589069132,0.97534302,686.55,684.75,0.967452]
[1752589069427,0.97534302,686.57,684.73,0.967452]
[1752589069628,0.97534302,686.61,684.77,0.967452]
[1752589069828,1.0782594,686.69,684.95,0.967452]
[1752589070029,1.0782594,686.68,684.97,0.967452]
[1752589070229,1.0782594,686.67,685.04,0.967452]
[1752589070430,1.0782594,686.66,685.07,0.967452]
[1752589070730,1.0782594,686.65,685.11,0.967452]
[1752589070930,1.0782594,686.64,685.09,0.967452]
[1752589071130,1.0782594,686.63,685.08,0.967452]
[1752589071430,1.0782594,686.62,685.09,0.967452]
[1752589071627,0.97534302,686.89,685.1,0.967452]
[1752589071830,0.97534302,686.9,685.1,0.967452]
[1752589072227,0.97534302,686.9,685.11,0.967452]
[1752589072427,0.97534302,686.89,685.12,0.967452]
[1752589072628,1.07889281,686.88,685.11,0.967452]
[1752589072831,1.49722494,686.87,685.12,0.967452]
[1752589073027,1.49722494,686.87,684.04,3.2264593]
[1752589073028,1.49722494,686.86,685.13,0.967452]
[1752589073231,1.49722494,686.85,685.14,0.967452]
[1752589073431,1.49722494,686.84,685.16,0.967452]
[1752589073729,2.47256796,686.83,685.19,0.967452]
[1752589073931,1.49722494,686.82,685.13,0.967452]
[1752589074133,1.49722494,686.81,685.13,0.967452]
[1752589074432,1.49722494,686.8,685.13,0.967452]
[1752589074626,1.49722494,686.79,685.06,0.967452]
[1752589074828,1.49722494,686.78,685.06,0.967452]
[1752589075032,1.49722494,686.77,685.06,0.967452]
[1752589075328,0.97534302,686.84,683.92,3.2264593]
[1752589075329,1.49722494,686.76,685.02,0.967452]
[1752589075531,1.49722494,686.75,685.03,0.967452]
[1752589075827,1.49722494,686.74,685.03,0.967452]
[1752589076029,1.49722494,686.73,685.02,0.967452]
[1752589076226,1.49722494,686.72,685.02,0.967452]
[1752589076428,1.49722494,686.71,685.03,0.967452]
[1752589076628,1.49722494,686.7,685.03,0.967452]
[1752589076832,1.49722494,686.69,685.03,0.967452]
[1752589077032,1.49722494,686.68,685.03,0.967452]
[1752589077233,1.49722494,686.67,685.03,0.967452]
[1752589077433,1.49722494,686.66,685.03,0.967452]
[1752589077633,1.49722494,686.65,685.03,0.967452]
[1752589077833,1.07889281,686.64,685.03,0.967452]
[1752589078036,1.07889281,686.63,685.03,0.967452]
[1752589078330,1.07889281,686.62,685.06,0.967452]
[1752589078534,0.41916394,686.61,685.06,0.967452]
[1752589078831,1.50039985,686.75,685.06,0.967452]
[1752589079030,1.50039985,686.74,685.06,0.967452]
[1752589079228,1.50039985,686.73,685.06,0.967452]
[1752589079533,1.50039985,686.72,685.07,0.967452]
[1752589079733,1.50039985,686.71,685.07,0.967452]
[1752589080029,1.50039985,686.7,685.07,0.967452]
[1752589080329,0.97534302,686.62,684.94,0.967452]
[1752589080729,0.97534302,686.57,684.9,0.967452]
[1752589080930,2.05739377,686.56,684.9,0.967452]
[1752589081129,1.08205075,686.55,684.9,0.967452]
[1752589081332,1.50157383,686.54,684.9,0.967452]
[1752589081529,1.50157383,686.53,684.9,0.967452]
[1752589081733,1.50157383,686.52,684.91,0.967452]
[1752589081933,1.50157383,686.51,684.93,0.967452]
[1752589082135,1.50157383,686.5,684.89,0.967452]
[1752589082335,2.47691685,686.49,684.91,0.967452]
[1752589082535,1.50157383,686.48,684.91,0.967452]
[1752589082736,1.50157383,686.47,684.91,0.967452]
[1752589082936,1.50157383,686.46,684.91,0.967452]
[1752589083136,1.50157383,686.45,684.91,0.967452]
[1752589083336,1.50157383,686.44,684.9,0.967452]
[1752589083534,1.50157383,686.43,684.92,0.967452]
[1752589083734,1.50157383,686.42,684.92,0.967452]
[1752589083938,1.50157383,686.41,684.92,0.967452]
[1752589084238,1.50157383,686.4,684.9,0.967452]
[1752589084535,1.50157383,686.39,684.93,0.967452]
[1752589084738,1.50157383,686.38,684.93,0.967452]
[1752589084938,1.50157383,686.37,684.93,0.967452]
[1752589085133,1.50236423,686.36,684.93,0.967452]
[1752589085337,1.50236423,686.35,684.93,0.967452]
[1752589085636,1.50236423,686.34,684.97,0.967452]
[1752589085834,1.50236423,686.33,685.01,0.967452]
[1752589086037,1.50236423,686.32,685.03,0.967452]
[1752589086235,1.50285341,686.31,685.03,0.967452]
[1752589086435,1.50285341,686.3,685.06,0.967452]
[1752589086634,1.08205075,686.29,685.06,0.967452]
[1752589086839,1.08205075,686.28,685.06,0.967452]
[1752589087039,0.97534302,686.48,685.06,0.967452]
[1752589087040,1.08205075,686.27,685.06,0.967452]
[1752589087240,0.97534302,686.48,685.06,0.967452]
[1752589087241,1.08205075,686.26,685.06,0.967452]
[1752589087435,1.08205075,686.25,685.09,0.967452]
[1752589087636,1.08205075,686.24,685.09,0.967452]
[1752589087842,1.08205075,686.23,685.09,0.967452]
[1752589088038,1.08205075,686.22,685.09,0.967452]
[1752589088341,1.08205075,686.21,685.08,0.967452]
[1752589088539,3.26068367,687.51,685.11,0.967452]
[1752589088540,1.08669109,686.2,685.11,0.967452]
[1752589088741,1.08669109,686.19,685.11,0.967452]
[1752589089042,1.08669109,686.18,685.06,0.967452]
[1752589089246,1.08669109,686.17,685.05,0.967452]